Cogmind - Beta 16 @@@ ROGUE MODE // 2026.02.09 @ 05:30:41 Player: MrFartsburg Result: Core destroyed Performance ------------- Evolutions (4) 2000 Regions Visited (6) 1200 Robots Destroyed (22) 110 Value Destroyed (637) 637 Prototype IDs (0) 0 Alien Tech Used (0) 0 Bonus (200) 200 TOTAL SCORE: 4147 Bonus ------- Pacifist 200 Cogmind --------- Core Integrity 0/850 Matter 67/450 Energy 236/300 System Corruption 5% Temperature Critical (501) Movement Treading (321) Ox2 Location -6/Factory Parts ------- > --- POWER (3) -------- Angular Momentum Engine > --- PROPULSION (3) --- Armored Treads Armored Treads Advanced Treads > --- UTILITY (5) ------ Huge Storage Unit Compact Matter Pod Hardened Medium Armor Plating Layered Medium Armor Plating Improved Field Recycling Unit > --- WEAPON (4) ------- Plasma Rifle Phase Cannon Heavy Plasma Cannon > --- INVENTORY (25) --- Aluminum Leg Wheel Heat Sink Improved Heat Sink High-capacity Storage Unit Medium Battery (150) Compact Battery (200) Small Matter Pod (0) Weight Redist. System Light Assault Rifle Light Assault Rifle Light Assault Rifle Light Assault Rifle Peak State ------------ > --- POWER ------------ Angular Momentum Engine > --- PROPULSION ------- Armored Treads Armored Treads Advanced Treads > --- UTILITY ---------- Huge Storage Unit Core Analyzer Hardened Medium Armor Plating Layered Medium Armor Plating Improved Field Recycling Unit > --- WEAPON ----------- Small Laser Plasma Rifle Phase Cannon Heavy Plasma Cannon > --- INVENTORY -------- Aluminum Leg Wheel Heat Sink Improved Heat Sink High-capacity Storage Unit Medium Battery Compact Battery Small Matter Pod Compact Matter Pod Weight Redist. System Small Laser Light Assault Rifle Light Assault Rifle Light Assault Rifle Light Assault Rifle [Rating: 49] Favorites ----------- Power Ion Engine Engine Ion Engine Power Core Light Nuclear Core Propulsion Armored Treads Treads Armored Treads Leg Aluminum Leg Wheel Wheel Utility Huge Storage Unit Device Improved Field Recycling Unit Storage Huge Storage Unit Processor Core Analyzer Protection Hardened Medium Armor Plating Weapon Light Assault Rifle Energy Gun Lightning Gun Energy Cannon Phase Cannon Ballistic Gun Light Assault Rifle Ballistic Cannon Improved Light Cannon Launcher EMP Blaster Build | -11 -10 -9 -9 -8 -7 -6 ------- Run | Yrd Mat Mat Min Mat Fac Fac Slots Evolved 8 | . . 2 . 2 2 2 Power 2 | . . . . 1 . 1 Propulsion 1 | . . . . . 1 . Utility 3 | . . 2 . . . 1 Weapon 2 | . . . . 1 1 . Parts Attached 44 | 7 3 6 . 14 4 10 Power 4 | 1 . . . 2 . 1 Engine 3 | 1 . . . 1 . 1 Core 1 | . . . . 1 . . Reactor . | . . . . . . . Propulsion 8 | 3 . . . 4 . 1 Treads 3 | . . . . 2 . 1 Leg 3 | 1 . . . 2 . . Wheel 2 | 2 . . . . . . Hover . | . . . . . . . Flight . | . . . . . . . Utility 17 | 1 3 4 . 4 2 3 Device 6 | . . 2 . 2 1 1 Storage 6 | 1 3 1 . . . 1 Processor 3 | . . 1 . 1 1 . Hackware . | . . . . . . . Protection 2 | . . . . 1 . 1 Artifact . | . . . . . . . Weapon 15 | 2 . 2 . 4 2 5 Energy Gun 5 | . . 1 . . 1 3 Energy Cannon 2 | . . . . . . 2 Ballistic Gun 4 | 2 . . . 1 1 . Ballistic Cannon 2 | . . 1 . 1 . . Launcher 2 | . . . . 2 . . Special Weapon . | . . . . . . . Impact Weapon . | . . . . . . . Slashing Weapon . | . . . . . . . Piercing Weapon . | . . . . . . . Special Melee Weapon . | . . . . . . . Unidentified Prototypes . | . . . . . . . Parts Lost 14 | . . . . 12 . 2 Power 3 | . . . . 3 . . Propulsion 3 | . . . . 3 . . Utility 3 | . . . . 2 . 1 Weapon 5 | . . . . 4 . 1 Highest Loss Streak 11 | . . . . 11 . 2 To Critical Strikes . | . . . . . . . Average Backups 11 | 4 5 11 13 12 9 14 Power . | . 1 1 1 . . . Propulsion 1 | 1 2 2 2 1 2 2 Utility 4 | . 1 2 3 3 4 7 Weapon 4 | 1 1 6 7 6 2 4 Tool/Special . | . . . . . . . Unused Backups 2 | . . . . . . 2 Power . | . . . . . . . Propulsion . | . . . . . . . Utility 2 | . . . . . . 2 Weapon . | . . . . . . . Tool/Special . | . . . . . . . Average Slot Usage (%) 84 | . 94 99 100 91 76 77 Engine 4 | . 14 11 11 7 . 1 Core 1 | . . . . 5 . . Treads 10 | . . . . 2 15 17 Leg 3 | . . . . 12 . . Wheel 4 | . 28 22 22 1 . . Device 8 | . . 11 11 12 1 10 Storage 13 | . 22 23 22 13 19 6 Processor 5 | . . 8 11 7 1 5 Protection 4 | . . . . 1 7 7 Energy Gun 4 | . . 3 11 1 5 8 Energy Cannon 2 | . . . . . . 7 Ballistic Gun 13 | . 28 9 . 6 24 9 Ballistic Cannon 3 | . . 8 11 11 . . Launcher 1 | . . . . 7 . . Peak Build Rating 49 | 6 8 14 14 24 27 49 Average Rating 24 | 2 6 12 14 19 20 39 On Entrance 12 | . 6 8 14 14 15 27 Avg Prop Armor Cover (%) . | . . . . . . . Naked Turns . | . . . . . . . Heaviest Build 145 | 12 127 95 94 106 98 145 Greatest Support 62 | 20 20 26 26 40 40 62 Greatest Overweight (x) 6 | . 6 4 3 5 2 3 Average Overweight (x) 2 | . 3 3 3 3 2 1 Largest Inventory Capacity 25 | 8 25 25 25 25 25 25 Average Capacity 24 | 6 22 25 25 25 25 25 Most Carried 17 | 6 11 13 14 15 13 17 Average Carried 11 | 4 6 11 13 12 9 14 Final Capacity 25 | 8 25 25 25 25 25 25 Final Carried 14 | 4 11 13 14 8 13 13 Class Distribution -------------------- 58% | Tank 21% | Gunner 20% | Mutant Dominant Class ---------------- Mutant | -10/Materials Mutant | -9/Materials Mutant | -9/Mines Gunner | -8/Materials Tank | -7/Factory Tank | -6/Factory Resources | -11 -10 -9 -9 -8 -7 -6 ----------- Run | Yrd Mat Mat Min Mat Fac Fac Matter Collected 777 | 198 92 124 . 201 47 115 Remotely 126 | . . . . 126 . . Salvage Created 565 | . . 43 . 260 7 255 Parts 42 | . . 7 . 13 1 21 Haulers Intercepted . | . . . . . . . Recyclers Shooed 1 | . . . . . . 1 Parts Field Recycled 1 | . . . . . . 1 Retrieved Matter 9 | . . . . . . 9 Parts Self-Destructed . | . . . . . . . Prevented . | . . . . . . . Parts Restored . | . . . . . . . Kills | -11 -10 -9 -9 -8 -7 -6 ------- Run | Yrd Mat Mat Min Mat Fac Fac Combat Hostiles Destroyed 14 | . . 4 . 7 . 3 Guns 3 | . . 1 . 1 . 1 Cannons 8 | . . 3 . 3 . 2 AOE 3 | . . . . 3 . . Classes Destroyed 9 | . . 1 . 7 . 1 Worker 2 | . . . . 1 1 . Builder 3 | . . . . 1 . 2 Watcher 3 | . . . . 1 . 2 Swarmer 4 | . . 4 . . . . Grunt 5 | . . . . 4 . 1 Duelist 1 | . . . . 1 . . Sentry 1 | . . . . 1 . . Hunter 1 | . . . . 1 . . Programmer 2 | . . . . . . 2 Best Kill Streak 7 | . . 2 . 7 1 2 Combat Bots Only 4 | . . 2 . 4 . 1 Max Kills in Single Turn 1 | . . 1 . 1 1 1 Gunslinging . | . . . . . . . Exploded 1 | . . . . 1 . . Melee . | . . . . . . . Uniques/NPCs Destroyed . | . . . . . . . Combat | -11 -10 -9 -9 -8 -7 -6 -------- Run | Yrd Mat Mat Min Mat Fac Fac Hostile Shots Fired 179 | . . 29 . 85 1 64 Missed 52 | . . 8 . 21 . 23 Hits 127 | . . 21 . 64 1 41 Melee 1 | . . . . 1 . . Projectile 126 | . . 21 . 63 1 41 Critical Strikes 7 | . . . . 1 . 6 Part Disruptions 2 | . . . . . . 2 Damage Taken 2732 | . 5 202 . 1095 14 1416 Core 1068 | . . 44 . 133 . 891 Absorbed by Shields . | . . . . . . . Core Remaining (%) 92 | 100 100 . 89 75 100 . Volleys Fired 47 | . . 11 . 20 1 15 Largest 4 | . . 2 . 3 4 4 Hottest 290 | . . 53 . 128 115 290 Shots Fired 132 | . . 22 . 50 4 56 Gun 76 | . . 11 . 27 4 34 Cannon 46 | . . 11 . 13 . 22 Launcher 10 | . . . . 10 . . Special . | . . . . . . . Kinetic 71 | . . 22 . 32 3 14 Thermal 44 | . . . . 8 . 36 Explosive 10 | . . . . 10 . . Electromagnetic 7 | . . . . . 1 6 Robot Hit Streak 7 | . . 4 . 7 3 5 Robot Miss Streak 7 | . . 4 . 3 1 7 Penetration Max . | . . . . . . . Secondary Targets . | . . . . . . . Shots Hit Robots 72 | . . 10 . 33 3 26 Core Hits 47 | . . 4 . 28 3 12 Critical Kills . | . . . . . . . Critical Parts Destroyed 1 | . . . . 1 . . Critical Strikes 3 | . . . . 1 . 2 Burn 2 | . . . . . . 2 Destroy 1 | . . . . 1 . . Melee Attacks . | . . . . . . . Impact . | . . . . . . . Slashing . | . . . . . . . Piercing . | . . . . . . . Sneak Attacks . | . . . . . . . Combat Hostiles . | . . . . . . . Follow-up Attacks . | . . . . . . . Damage Inflicted 1771 | . 10 144 . 870 56 691 Guns 567 | . . 56 . 147 46 318 Cannons 662 | . . 88 . 216 . 358 Explosions 507 | . . . . 507 . . Melee . | . . . . . . . Ramming 35 | . 10 . . . 10 15 Kinetic 525 | . . 144 . 303 24 54 Thermal 644 | . . . . 60 . 584 Explosive 507 | . . . . 507 . . Electromagnetic 60 | . . . . . 22 38 Impact . | . . . . . . . Slashing . | . . . . . . . Piercing . | . . . . . . . Highest Corruption 5 | . . . . . 2 5 Average Corruption 3 | . . . . . 2 4 Corruption Purged . | . . . . . . . Corruption Blocked . | . . . . . . . Effects 11 | . . . . . . 11 Message Errors 3 | . . . . . . 3 Matter Fused 2 | . . . . . . 2 Heat Flow Errors 1 | . . . . . . 1 Energy Discharges 3 | . . . . . . 3 Data Loss (major) 1 | . . . . . . 1 Weapon Failures 1 | . . . . . . 1 Overload Shots . | . . . . . . . Overflow Damage 31 | . . 2 . . . 29 Projectiles 31 | . . 2 . . . 29 Explosions . | . . . . . . . Melee . | . . . . . . . Knockbacks 6 | . . . . 6 . . Impact . | . . . . . . . Kinetic 6 | . . . . 6 . . Secondary . | . . . . . . . Self-Inflicted Damage 107 | . 5 . . 102 . . Shots 5 | . . . . 5 . . Rammed 6 | . 1 . . . 2 3 Targets Rammed 7 | . 1 . . . 3 3 Kicked . | . . . . . . . Crushed 1 | . . . . . 1 . Highest Temperature 1045 | . . . . 470 65 1045 Average Temperature 312 | . . . . 164 34 405 Received Heat Transfer 351 | . . 9 . 333 9 . Effects 42 | . . . . 3 . 39 Shutdowns 8 | . . . . 2 . 6 Energy Bleed 2 | . . . . . . 2 Interference 5 | . . . . . . 5 Matter Decay 3 | . . . . . . 3 Short Circuit 4 | . . . . 1 . 3 Damage (minor) 4 | . . . . . . 4 Damage (major) 10 | . . . . . . 10 Damage (core) 6 | . . . . . . 6 Siege Activations . | . . . . . . . Martial Activations . | . . . . . . . Shielding Activations . | . . . . . . . Robots Disrupted . | . . . . . . . Combat Hostiles . | . . . . . . . Robots Corrupted . | . . . . . . . Combat Hostiles . | . . . . . . . Parts Fried . | . . . . . . . Impact Corruptions . | . . . . . . . Robots Melted . | . . . . . . . Combat Hostiles . | . . . . . . . Parts Melted 3 | . . . . . . 3 Heat Transferred 1194 | . . . . 148 . 1046 Parts Sabotaged . | . . . . . . . Parts Stolen . | . . . . . . . Parts Stripped . | . . . . . . . Power Chain Reactions . | . . . . . . . Alert | -11 -10 -9 -9 -8 -7 -6 ------- Run | Yrd Mat Mat Min Mat Fac Fac Maximum Alert Level . | . . . . . . . Low Security (%) 100 | 100 100 100 100 100 100 100 Level 1 . | . . . . . . . Level 2 . | . . . . . . . Level 3 . | . . . . . . . Level 4 . | . . . . . . . Level 5 . | . . . . . . . High Security . | . . . . . . . Max Security . | . . . . . . . Peak Influence 102 | . . 102 19 73 7 52 Initial 19 | . . . 19 3 7 . Average 9 | . . 50 14 16 . 3 Influence Increases 471 | . . 122 . 222 5 122 Destroy 0b10 Robot/C 280 | . . 80 . 140 . 60 Destroy 0b10 Robot/NC 40 | . . . . 15 5 20 Destroy Leader 86 | . . 10 . 42 . 34 Destroy Structure 35 | . . 2 . 25 . 8 Lose Combat Pursuer 30 | . . 30 . . . . Influence Decreases 419 | . . 70 43 214 22 70 Entered New Map 49 | . . . 33 6 10 . Time Decay 299 | . . 70 10 137 12 70 Lost Part 71 | . . . . 71 . . Squads Dispatched 15 | . 1 1 . 6 1 6 Investigation 2 | . 1 . . 1 . . Extermination 3 | . . . . . 1 2 Reinforcement 7 | . . 1 . 2 . 4 Assault . | . . . . . . . Garrison 3 | . . . . 3 . . Intercept . | . . . . . . . Searches Triggered . | . . . . . . . Construction Impeded 1 | . . . . . . 1 Haulers Reinforced . | . . . . . . . Active Scanning Responses . | . . . . . . . Cargo Convoy Interrupts . | . . . . . . . Stealth | -11 -10 -9 -9 -8 -7 -6 --------- Run | Yrd Mat Mat Min Mat Fac Fac Distress Signals . | . . . . . . . Communications Jammed . | . . . . . . . Distress Signals . | . . . . . . . Times Spotted 28 | . 1 8 . 9 4 6 Peak Tracking Total 5 | . 2 4 . 5 1 2 Tactical Retreats 1 | . . 1 . . . . Traps | -11 -10 -9 -9 -8 -7 -6 ------- Run | Yrd Mat Mat Min Mat Fac Fac Traps Triggered 4 | . . . . 1 1 2 Indirectly . | . . . . . . . Trap Hack Attempts . | . . . . . . . Triggered . | . . . . . . . Disarmed . | . . . . . . . Reprogrammed . | . . . . . . . Reused . | . . . . . . . Traps Extracted . | . . . . . . . Installed . | . . . . . . . Triggered . | . . . . . . . Machines | -11 -10 -9 -9 -8 -7 -6 ---------- Run | Yrd Mat Mat Min Mat Fac Fac Machines Disabled . | . . . . . . . Max in Single Turn . | . . . . . . . Machines Repaired . | . . . . . . . Machines Dismantled . | . . . . . . . Machines Sabotaged . | . . . . . . . Overloaded Fab Kills . | . . . . . . . Hacking | -11 -10 -9 -9 -8 -7 -6 --------- Run | Yrd Mat Mat Min Mat Fac Fac Machines Accessed . | . . . . . . . Terminals . | . . . . . . . Fabricators . | . . . . . . . Repair Stations . | . . . . . . . Recycling Units . | . . . . . . . Scanalyzers . | . . . . . . . Garrison Access . | . . . . . . . Total Hacks . | . . . . . . . Successful . | . . . . . . . Failed . | . . . . . . . Catastrophic . | . . . . . . . Database Lockouts . | . . . . . . . Manual . | . . . . . . . Terminals . | . . . . . . . Fabricators . | . . . . . . . Repair Stations . | . . . . . . . Recycling Units . | . . . . . . . Scanalyzers . | . . . . . . . Garrison Access . | . . . . . . . Terminal Hacks . | . . . . . . . Fabricator Hacks . | . . . . . . . Repair Station Hacks . | . . . . . . . Recycling Unit Hacks . | . . . . . . . Scanalyzer . | . . . . . . . Garrison Access Hacks . | . . . . . . . Unauthorized Hacks . | . . . . . . . Terminals . | . . . . . . . Fabricators . | . . . . . . . Repair Stations . | . . . . . . . Recycling Units . | . . . . . . . Scanalyzers . | . . . . . . . Garrison Access . | . . . . . . . Data Cores Recovered . | . . . . . . . Used . | . . . . . . . Hacking Detections . | . . . . . . . Full Trace Events . | . . . . . . . Feedback Events . | . . . . . . . Feedback Blocked . | . . . . . . . Robot Schematics Acquired . | . . . . . . . Robots Built . | . . . . . . . Authchips . | . . . . . . . Time . | . . . . . . . Total Robot Build Rating . | . . . . . . . Part Schematics Acquired . | . . . . . . . Parts Built . | . . . . . . . Authchips . | . . . . . . . Time . | . . . . . . . Total Part Build Rating . | . . . . . . . Part Studies Acquired . | . . . . . . . Parts Repaired . | . . . . . . . Time . | . . . . . . . Parts Recycled . | . . . . . . . Recycled Matter . | . . . . . . . Retrieved Matter . | . . . . . . . Retrieved Components . | . . . . . . . Parts Scanalyzed . | . . . . . . . Part Schematics Acquired . | . . . . . . . Parts Damaged . | . . . . . . . Bothacking | -11 -10 -9 -9 -8 -7 -6 ------------ Run | Yrd Mat Mat Min Mat Fac Fac Used RIF Installer . | . . . . . . . Robots Hacked . | . . . . . . . Non-combat . | . . . . . . . Combat . | . . . . . . . Robot Hacks Applied . | . . . . . . . Relay Couplers Released . | . . . . . . . Fabnet Peak Effective % . | . . . . . . . Robots Rewired . | . . . . . . . Allies Hacked . | . . . . . . . Hacks Repelled . | . . . . . . . Allies | -11 -10 -9 -9 -8 -7 -6 -------- Run | Yrd Mat Mat Min Mat Fac Fac Total Allies . | . . . . . . . Largest Group . | . . . . . . . Highest-Rated Group . | . . . . . . . Highest-Rated Ally . | . . . . . . . Total Orders . | . . . . . . . Ally Attacks . | . . . . . . . Total Damage . | . . . . . . . Kills . | . . . . . . . Allies Corrupted . | . . . . . . . Allies Melted . | . . . . . . . Intel | -11 -10 -9 -9 -8 -7 -6 ------- Run | Yrd Mat Mat Min Mat Fac Fac Active Infowar (turns) . | . . . . . . . Robot Analysis Total . | . . . . . . . Derelict Logs Recovered . | . . . . . . . Drone Launches . | . . . . . . . Drone Recoveries . | . . . . . . . Exploration | -11 -10 -9 -9 -8 -7 -6 ------------- Run | Yrd Mat Mat Min Mat Fac Fac Turns Passed 2544 | 49 142 196 35 675 592 855 Spaces Moved 870 | 44 96 114 28 161 173 254 Core 10 | 10 . . . . . . Treads 458 | . . . . 31 173 254 Legs 108 | . . . . 108 . . Wheels 294 | 34 96 114 28 22 . . Hover . | . . . . . . . Flight . | . . . . . . . Fastest Speed 50 | 50 80 125 125 125 330 241 Average Speed 258 | 73 129 134 125 357 330 297 Slowest Speed 470 | 80 170 140 125 470 330 410 Overloaded Moves . | . . . . . . . Propulsion Burnouts . | . . . . . . . Robots Hopped . | . . . . . . . Potential Cave-ins . | . . . . . . . Cave-ins Triggered . | . . . . . . . Exploration Rate (%) 13 | 3 16 20 12 25 7 10 Regions Visited 6 Branch Regions 1 Pre-discovered Areas . | . . . . . . . Known Exits Taken . | . . . . . . . Unknown Exits Taken 6 | 1 1 1 1 1 1 . Scrap Searched . | . . . . . . . Spaces Dug . | . . . . . . . Terrain Destroyed 34 | . . . . 26 . 8 Melee . | . . . . . . . Projectile 8 | . . . . . . 8 AOE 26 | . . . . 26 . . Terrain Rammed . | . . . . . . . Walls Destroyed . | . . . . . . . Machines Disabled . | . . . . . . . Actions | -11 -10 -9 -9 -8 -7 -6 --------- Run | Yrd Mat Mat Min Mat Fac Fac Total 1056 | 61 113 134 28 221 186 313 Wait 17 | . 4 . . 1 . 12 Move 864 | 43 95 113 27 160 172 254 Hop . | . . . . . . . Pick Up 53 | 10 9 4 1 12 6 11 Fast Attach . | . . . . . . . Attach 39 | 7 1 2 . 17 1 11 Detach 1 | 1 . . . . . . Swap 22 | . 2 4 . 9 3 4 Drop 6 | . 1 . . 2 . 3 Fire 47 | . . 11 . 20 1 15 Melee . | . . . . . . . Ram 1 | . 1 . . . . . Kick . | . . . . . . . Crush 6 | . . . . . 3 3 Escape Stasis . | . . . . . . . Rewire . | . . . . . . . Trap . | . . . . . . . Miscellaneous . | . . . . . . . Route ------- -11/Scrapyard -10/Materials -9/Materials -9/Mines -8/Materials -7/Factory -6/Factory History --------- Turn | Location | Event 8 | -11/Scrapyard | Discovered new exit (range 15) 50 | -11/Scrapyard | Entered Materials 51 | -10/Materials | Met a group of wandering Federalists 163 | -10/Materials | Discovered new exit (range 15) 192 | -10/Materials | Entered another Materials area 192 | -9/Materials | Evolved 2 slots: Utility x2 308 | -9/Materials | Build established: Mutant 367 | -9/Materials | Discovered new exit (range 15) 388 | -9/Materials | Entered Mines 396 | -9/Mines | Met a Derelict bent on vengeance 404 | -9/Mines | Discovered new exit (range 16) 423 | -9/Mines | Entered Materials 423 | -8/Materials | Evolved 2 slots: Power x1, Weapon x1 465 | -8/Materials | Garrison activated, responded to threat 756 | -8/Materials | Met 7R-MNS 896 | -8/Materials | Build established: Gunner 984 | -8/Materials | Lost 11 parts (3p2n2u4w) 1068 | -8/Materials | Discovered new exit (range 10) 1098 | -8/Materials | Entered Factory 1098 | -7/Factory | Evolved 2 slots: Propulsion x1, Weapon x1 1099 | -7/Factory | Caught up to 7R-MNS 1249 | -7/Factory | Build established: Tank 1661 | -7/Factory | Discovered new exit (range 7) 1690 | -7/Factory | Entered another Factory area 1690 | -6/Factory | Evolved 2 slots: Power x1, Utility x1 1691 | -6/Factory | Caught up to 7R-MNS 2507 | -6/Factory | Core integrity fell below 50% 2526 | -6/Factory | Core integrity fell below 20% 2546 | -6/Factory | Core destroyed Last Messages --------------- Sml. Laser broken. Overheating: Short circuit. K-01 Serf collects debris. Overheating: System interference. Phase Cannon temporarily disabled. Plasma Rifle temporarily disabled. Imp. Field Recycling Unit temporarily disabled. Acquired 44 matter. System corrupted: Matter fused (-10). K-01 Serf collects debris. Overheating: Energy bleed (-52). K-01 Serf collects debris. Dropped Broken Sml. Laser. G-50 Soldier destroyed. K-01 Serf collects debris. Imp. Field Recycling Unit collects Broken Sml. Laser, recycling 9 matter... Power failure, Angular Momentum Engine shutdown. K-01 Serf collects debris. Overheating: Core damaged (-153). Map ----- +----------------------------------------------------+ | ????????????????# """ """ # # """"??????? | | ????????????????# # #?"""???????? | | ????????????????# """ """ # #?"""???????? | | ????????????????# """ """ # #???????????? | | ????????????????# """ """ # #???????????? | | ????????????????# # #???????????? | | ????????????????###+########## #####???????? | | ??????????????????# #????????# # ????????? | | ????????????????###+########## + ??????????? | | ????????????????# # # ?????????? | | ????????????????#!! # # ????????? | | ????????????????# ! # #? ???????? | | ????????????????# # #? ""??????? | | ????????????????# # #?? """?????? | | ??????????????" #! # #??? ??????? | | ????????????? # # #???????????? | | ?????????????#??# !# #???????????? | | ????????????????# # u#???????????? | | ????????????????# # u#???????????? | | ????????????????# ! # #???????????? | | ????????????????# ! # #???????????? | | ???????????#### #######u###### #???????????? | | ???????????# k k #???????????? | | ???????????# #???????????? | | ???????????# #???????????? | | ???????????# @ #???????????? | | ???????????# #???????????? | | ???????????# % #???????????? | | ???????????# !%[ R #???????????? | | ???????????# =##############+####???????????? | | ???????????# ????????????? ??????????????? | | ???????????? ?????????????? ?????????????? | | ???????????? ?????????????? ????????????? | | ????????????? ??????????????? ????????????? | | ??????????????? ???????????????? ???????????? | | ???????????????????????????????? ????????????? | | ???????????????????????????????? ??????????????? | | ?????????????????????????????????????????????????? | | ?????????????????????????????????????????????????? | | ?????????????????????????????????????????????????? | | ?????????????????????????????????????????????????? | | ?????????????????????????????????????????????????? | | ?????????????????????????????????????????????????? | | ?????????????????????????????????????????????????? | | ?????????????????????????????????????????????????? | | ?????????????????????????????????????????????????? | | ?????????????????????????????????????????????????? | | ?????????????????????????????????????????????????? | | ?????????????????????????????????????????????????? | | ?????????????????????????????????????????????????? | +----------------------------------------------------+ Best States ------------- Heat Dissipation 38 Energy Generation 19 Energy Capacity 550 Matter Stores 300 Matter Capacity 450 Sight Range 16 Terrain Scan Density 110 Additional Mass Support 6 Armor Coverage 450 Evasion (%) 50 Core Analysis 6 Recoil Reduction 4 Item Schematics ----------------- None Robot Schematics ------------------ None Fabricated ------------ Nothing Repaired ---------- Nothing Studied --------- None Alien Tech Used ----------------- None Achievements -------------- None Challenges ------------ None Game ------ Seed HoverReinforcedAirjet Manual? 0 Play Time 00:36:56 Cumulative 13.3 hours Start 2026.02.09 @ 04:52:53 End 2026.02.09 @ 05:30:41 Sessions 1 Manual Loads 0 Difficulty Rogue Special Mode None Game No. 24 Rogue 24 Adventurer 0 Explorer 0 Win Type - Total 0 Types 0/0/0/0/0/0/0/0/0/0 Lore% 4 Gallery% 15 Achievement% 11 Wizard Run 0 Options --------- Layout 1 ASCII 0 Keyboard 0 Movement Numpad Keybinds 0 Fullscreen 1 Font 32/SmallcapsGlow Map View 50x35 Zoom Use 0% Tactical HUD 0 Map Filters NONE Filters NONE Steam 1 RUN: 6fb411ad-d61c-462e-a233-f4875138ec28